bitfinex-derivatives/quotes_SOLF0:USTF0_20260305
["timestamp","ask_amount","ask_price","bid_price","bid_amount"]
[1772687892062,3.94676148,90.497,90.45,3.65852442]
[1772687893372,3.94676148,90.497,90.451,0.13436183]
[1772687894364,9.942,90.495,90.451,0.13436183]
[1772687895670,13.90245282,90.495,90.451,0.13436183]
[1772687895870,3.96045282,90.495,90.451,0.13436183]
[1772687896269,9.941,90.503,90.461,0.11549541]
[1772687897668,13.90276416,90.501,90.461,0.11549541]
[1772687897874,3.96076416,90.5,90.461,0.11549541]
[1772687900673,3.96076416,90.5,90.431,20.50204207]
[1772687900674,3.96611515,90.53,90.49,3.51539619]
[1772687901077,9.939,90.526,90.49,3.51539619]
[1772687901271,3.96611515,90.53,90.49,3.51539619]
[1772687903077,3.83461399,90.527,90.469,0.42725061]
[1772687903271,3.83461399,90.527,90.47,3.51539619]
[1772687904479,3.83461399,90.521,90.47,13.46039619]
[1772687906277,3.83461399,90.518,90.47,13.46039619]
[1772687906579,3.83461399,90.518,90.48,3.51539619]
[1772687907877,3.98717897,90.515,90.48,3.51539619]
[1772687910478,3.98717897,90.515,90.47,13.46039619]
[1772687912581,3.98717897,90.513,90.47,13.46039619]
[1772687918176,4.04116847,90.512,90.469,0.42725061]
[1772687918377,4.04116847,90.512,90.463,9.946]
[1772687918585,4.04116847,90.509,90.45,3.51539619]
[1772687918884,4.04116847,90.509,90.46,3.51539619]
[1772687919886,4.04116847,90.509,90.461,9.946]
[1772687920082,4.04116847,90.509,90.46,3.51539619]
[1772687920283,4.08495883,90.529,90.47,3.51539619]
[1772687920483,4.08495883,90.529,90.48,3.51539619]
[1772687921488,4.12296816,90.523,90.473,9.945]
[1772687922177,4.12296816,90.523,90.47,3.51539619]
[1772687922382,14.06296816,90.52,90.47,3.51539619]
[1772687922581,4.12296816,90.519,90.47,3.51539619]
[1772687923086,4.20497415,90.517,90.47,3.51539619]
[1772687924278,4.20497415,90.517,90.457,13.68744663]
[1772687924479,4.20497415,90.515,90.46,3.51539619]
[1772687925487,4.24301789,90.511,90.46,3.51539619]
[1772687926485,9.941,90.509,90.46,3.51539619]
[1772687926690,4.24301789,90.511,90.461,9.946]
[1772687927488,3.51539619,90.52,90.46,3.51539619]
[1772687927489,4.28085537,90.509,90.46,3.51539619]
[1772687928382,14.22185537,90.503,90.46,3.51539619]
[1772687928890,4.32613492,90.502,90.46,3.51539619]
[1772687929690,4.32613492,90.502,90.453,23.63444663]
[1772687929691,4.32613492,90.502,90.453,13.68744663]
[1772687929990,4.32613492,90.502,90.47,3.51539619]
[1772687930392,9.942,90.501,90.47,3.51539619]
[1772687931786,9.942,90.501,90.46,3.51539619]
[1772687932386,14.26884595,90.501,90.46,3.51539619]
[1772687932687,9.942,90.497,90.46,3.51539619]
[1772687932891,4.36527151,90.496,90.45,3.51539619]
[1772687934089,4.36527151,90.496,90.46,3.51539619]
[1772687934493,9.943,90.491,90.46,3.51539619]
[1772687936493,14.30375157,90.491,90.46,3.51539619]
[1772687936791,14.30375157,90.491,90.409,47.13319797]
[1772687936792,4.36075157,90.486,90.44,17.20284282]
[1772687936989,4.36075157,90.486,90.44,3.51539619]
[1772687937895,4.36075157,90.486,90.45,3.51539619]
[1772687938395,9.944,90.482,90.45,3.51539619]
[1772687938594,14.3723424,90.482,90.45,3.51539619]
[1772687939195,4.42921071,90.499,90.46,3.51539619]
[1772687940296,4.42921071,90.518,90.47,3.51539619]
[1772687941198,9.941,90.504,90.47,3.51539619]
[1772687948401,14.56950602,90.504,90.47,3.51539619]
[1772687948796,4.66389185,90.501,90.46,3.51539619]
[1772687949402,4.66389185,90.499,90.45,3.51539619]
[1772687950405,4.66389185,90.49,90.45,3.51539619]
[1772687950605,4.66389185,90.49,90.44,27.15084282]
[1772687951402,4.69956141,90.487,90.44,27.15084282]
[1772687952202,4.69956141,90.487,90.441,13.68744663]
[1772687952807,3.51539619,90.51,90.45,3.51539619]
[1772687952808,9.942,90.496,90.45,3.51539619]
[1772687953709,14.65381119,90.496,90.45,3.51539619]
[1772687954112,9.943,90.493,90.45,3.51539619]
[1772687954409,4.71181119,90.492,90.45,3.51539619]
[1772687955398,9.943,90.489,90.45,3.51539619]
[1772687955605,14.67874237,90.489,90.45,3.51539619]
[1772687956611,4.73574237,90.486,90.441,13.68744663]
[1772687956802,4.73574237,90.486,90.45,3.51655616]
[1772687957002,4.73574237,90.486,90.437,13.68744663]
[1772687957211,4.73574237,90.486,90.44,3.51655616]
[1772687958117,4.76378429,90.477,90.432,13.68744663]
[1772687958409,4.76378429,90.477,90.421,13.68744663]
[1772687958615,4.76378429,90.477,90.42,3.51655616]
[1772687959204,4.75644379,90.469,90.411,13.68744663]
[1772687959408,4.75644379,90.467,90.411,13.68744663]
[1772687960108,4.75644379,90.467,90.41,13.46855616]
[1772687960513,4.75644379,90.463,90.41,13.46855616]
[1772687960707,4.75644379,90.463,90.41,3.51655616]
[1772687962403,4.61457238,90.461,90.41,3.51655616]
[1772687963208,4.6500123,90.452,90.41,3.51655616]
[1772687963411,4.6500123,90.452,90.4,3.51655616]
[1772687964508,3.51655616,90.46,90.4,3.51655616]
[1772687964509,4.6500123,90.45,90.4,3.51655616]
[1772687965015,4.63927099,90.448,90.39,3.51655616]
[1772687965507,4.63927099,90.448,90.4,3.51655616]
[1772687966411,9.949,90.438,90.4,3.51655616]
[1772687966914,14.62082121,90.438,90.4,3.51655616]
[1772687967305,9.949,90.436,90.4,3.51655616]
[1772687968217,14.62082121,90.436,90.4,3.51655616]
[1772687970116,4.67182121,90.436,90.4,3.51655616]
[1772687970317,4.67027339,90.448,90.41,3.51655616]
[1772687970616,4.67027339,90.469,90.43,3.51655616]
[1772687971120,4.67027339,90.469,90.42,3.51655616]
[1772687978327,4.67027339,90.469,90.41,3.51655616]
[1772687978828,14.61527339,90.469,90.404,9.952]
[1772687979025,4.81978304,90.468,90.41,3.51655616]
[1772687979625,4.81978304,90.466,90.41,3.51655616]
[1772687980527,4.81978304,90.464,90.41,3.51655616]
[1772687981531,9.946,90.462,90.41,3.51655616]
[1772687981728,4.81062427,90.461,90.41,3.51655616]
[1772687982522,4.81062427,90.458,90.41,3.51655616]
[1772687983431,4.81026754,90.455,90.41,3.51655616]
[1772687984631,4.81026754,90.451,90.41,3.51655616]
[1772687986733,8.88937946,90.492,90.41,3.51655616]
[1772687986734,4.81257027,90.448,90.41,3.51655616]
[1772687987028,4.81002431,90.465,90.42,3.51655616]
[1772687987235,4.81002431,90.465,90.43,3.51655616]
[1772687987834,9.946,90.464,90.43,3.51655616]
[1772687988034,9.946,90.464,90.42,3.51655616]
[1772687988533,9.946,90.459,90.42,3.51655616]
[1772687990735,4.81002431,90.463,90.42,3.51655616]
[1772687992634,9.946,90.46,90.42,3.51655616]
[1772687993936,4.81002431,90.463,90.42,3.51655616]
[1772687997738,9.946,90.462,90.42,3.51655616]
[1772687997938,14.76932352,90.462,90.42,3.51655616]
[1772687998134,4.82332352,90.461,90.42,3.51655616]
[1772687999040,14.76649695,90.458,90.41,9.952]
[1772687999234,14.76649695,90.458,90.42,3.51655616]
[1772688000934,4.82774512,90.457,90.41,3.51655616]
[1772688002732,4.82774512,90.457,90.407,13.68744663]
[1772688002733,4.82774512,90.457,90.43,3.51655616]
[1772688003741,4.82774512,90.457,90.411,13.68744663]
[1772688003941,4.82801953,90.449,90.411,0.00044663]
[1772688004442,4.82801953,90.439,90.39,3.51655616]
[1772688005447,4.8381641,90.431,90.39,3.51655616]
[1772688007135,4.8381641,90.431,90.38,3.51655616]
[1772688007333,4.8107892,90.428,90.38,3.51655616]
[1772688008441,4.8107892,90.423,90.38,3.51655616]
[1772688010443,10.34115256,90.463,90.38,3.51655616]
[1772688010444,4.77428198,90.42,90.38,3.51655616]
[1772688010738,4.77428198,90.42,90.37,3.51655616]
[1772688011342,4.77428198,90.42,90.38,3.51655616]
[1772688011543,4.76846607,90.418,90.37,3.51655616]
[1772688012645,4.76846607,90.39,90.35,3.51655616]
[1772688013349,4.75515148,90.387,90.34,3.51655616]
[1772688014043,4.75515148,90.371,90.33,3.51655616]
[1772688014548,4.75515148,90.371,90.331,9.96]
[1772688014752,4.75515148,90.389,90.35,3.51655616]
[1772688015245,4.75515148,90.389,90.36,3.51655616]
[1772688015649,4.75515148,90.389,90.35,3.51655616]
[1772688016253,4.75515148,90.389,90.279,20.50204207]
[1772688016452,4.67528081,90.368,90.32,3.51655616]
[1772688016652,4.67528081,90.368,90.31,3.51655616]
[1772688017252,4.65468096,90.366,90.306,9.963]
[1772688017455,4.65468096,90.366,90.32,3.51655616]
[1772688018458,4.65468096,90.366,90.32,3.52659191]
[1772688019453,4.65468096,90.366,90.33,3.52659191]
[1772688019653,4.65468096,90.366,90.263,1.92653161]
[1772688019850,4.66579829,90.349,90.245,20.50204207]
[1772688020053,4.66579829,90.349,90.29,3.52659191]
[1772688022356,4.51377901,90.347,90.29,3.52659191]
[1772688023255,4.51434406,90.345,90.29,3.52659191]
[1772688024061,4.51434406,90.333,90.28,3.52659191]
[1772688024760,4.50764722,90.327,90.28,3.52659191]
[1772688024956,4.50764722,90.327,90.29,3.52659191]
[1772688026065,4.50764722,90.34,90.29,3.52659191]
[1772688026661,14.46764722,90.339,90.3,3.52659191]
[1772688026855,4.50764722,90.338,90.3,3.52659191]
[1772688028163,9.959,90.347,90.3,3.52659191]
[1772688028368,4.5040953,90.346,90.3,3.52659191]
[1772688029053,4.51102628,90.343,90.29,3.52659191]
[1772688029960,4.51102628,90.343,90.3,3.52659191]
[1772688033656,3.52659191,90.35,90.284,9.966]
[1772688033657,4.50652034,90.339,90.284,9.966]
[1772688033864,4.50652034,90.339,90.29,3.52659191]
[1772688034266,4.50652034,90.339,90.29,13.49159191]
[1772688034966,4.50652034,90.339,90.3,3.52659191]
[1772688035267,4.50531525,90.337,90.3,3.52659191]
[1772688035465,4.50531525,90.337,90.29,3.52659191]
[1772688035669,4.50531525,90.337,90.3,3.52659191]
[1772688036667,4.50531525,90.333,90.3,3.52659191]
[1772688037171,4.50531525,90.333,90.29,3.52659191]
[1772688042374,14.43737742,90.331,90.29,3.52659191]
[1772688042574,4.47737742,90.33,90.29,3.52659191]
[1772688042777,4.47737742,90.33,90.282,9.966]
[1772688042976,4.47737742,90.33,90.29,3.52659191]
[1772688043474,4.47709979,90.329,90.28,3.52659191]
[1772688043871,4.47709979,90.321,90.28,3.52659191]
[1772688045175,4.4788935,90.319,90.28,3.52659191]
[1772688045477,4.4788935,90.319,90.27,3.52659191]
[1772688045775,4.4788935,90.305,90.26,3.52659191]
[1772688046168,4.4788935,90.303,90.26,3.52659191]
[1772688047674,4.4761342,90.316,90.28,3.52659191]
[1772688048077,4.4761342,90.316,90.27,3.52659191]
[1772688048274,4.4761342,90.316,90.234,19.943]
[1772688048579,4.4761342,90.316,90.27,3.52659191]
[1772688050977,4.4908388,90.304,90.26,3.52659191]
[1772688051381,4.4908388,90.304,90.25,3.52659191]
[1772688052473,4.4908388,90.301,90.25,3.52659191]
[1772688053069,4.48996374,90.299,90.25,3.52659191]
[1772688054073,4.48996374,90.297,90.26,3.52659191]
[1772688056177,4.49061171,90.295,90.26,3.52659191]
[1772688056380,4.49061171,90.309,90.27,3.52659191]
[1772688058979,4.48718961,90.329,90.28,3.52659191]
[1772688059382,4.48718961,90.354,90.243,20.50204207]
[1772688059683,4.48718961,90.354,90.3,3.52659191]
[1772688059882,4.48718961,90.349,90.252,20.50204207]
[1772688060085,4.48718961,90.319,90.245,9.97]
[1772688060280,4.48718961,90.319,90.27,3.52659191]
[1772688060480,4.48718961,90.309,90.25,3.52659191]
[1772688061485,4.44928686,90.299,90.25,3.52659191]
[1772688064189,4.44928686,90.299,90.26,3.52659191]
[1772688064788,4.45975409,90.316,90.28,3.52659191]
[1772688064989,4.45975409,90.316,90.206,19.949]
[1772688064990,3.52659191,90.31,90.26,3.52659191]
[1772688065293,4.45975409,90.309,90.25,3.52659191]
[1772688066399,4.45975409,90.3,90.25,3.52659191]
[1772688067004,4.46183842,90.298,90.25,3.52659191]
[1772688067399,4.46183842,90.298,90.216,20.50204207]
[1772688067599,4.46183842,90.298,90.25,3.52659191]
[1772688067800,4.46183842,90.296,90.25,3.52659191]
[1772688068903,4.46693926,90.293,90.25,3.52659191]
[1772688069603,9.966,90.283,90.25,3.52659191]
[1772688071200,9.966,90.277,90.217,9.973]
[1772688071505,9.966,90.277,90.25,3.52659191]
[1772688071902,9.967,90.271,90.25,0.00059191]
[1772688072304,9.968,90.265,90.25,0.00059191]
[1772688072601,4.59823482,90.282,90.25,0.00059191]
[1772688075502,4.59823482,90.282,90.217,9.973]
[1772688075805,4.59823482,90.282,90.24,3.52659191]
[1772688076303,4.60450337,90.28,90.24,3.52659191]
[1772688080003,4.60450337,90.28,90.23,3.52659191]
[1772688080609,4.60450337,90.28,90.23,3.53356642]
[1772688082099,4.57691377,90.279,90.23,3.53356642]
[1772688082510,4.57691377,90.259,90.2,3.53356642]
[1772688083105,124.0,90.28,90.181,20.50204207]
[1772688083106,4.62189506,90.229,90.181,20.50204207]
[1772688083311,4.62189506,90.229,90.19,3.53356642]
[1772688083510,4.62189506,90.249,90.2,3.53356642]
[1772688083708,4.62189506,90.249,90.21,3.53356642]
[1772688083905,4.62189506,90.249,90.2,3.53356642]
[1772688084101,4.62189506,90.249,90.14,27.22919797]
[1772688084102,4.62189506,90.239,90.19,3.53356642]
[1772688084400,4.62189506,90.239,90.18,3.53356642]
[1772688085501,4.62189506,90.239,90.144,20.50204207]
[1772688085502,4.62189506,90.239,90.195,9.975]
[1772688086715,4.62189506,90.239,90.183,9.977]
[1772688087010,4.62189506,90.239,90.18,3.53356642]
[1772688087011,4.65665481,90.229,90.18,3.53356642]
[1772688092308,4.65472059,90.227,90.17,3.53356642]
[1772688093410,4.64271809,90.224,90.17,3.53356642]
[1772688093611,4.64271809,90.224,90.18,3.53356642]
[1772688094213,4.64271809,90.222,90.18,3.53356642]
[1772688094615,4.64271809,90.222,90.17,3.53356642]
[1772688094816,4.66001676,90.219,90.17,3.53356642]
[1772688096412,4.66001676,90.217,90.17,3.53356642]
[1772688096712,4.66118824,90.231,90.18,3.53356642]
[1772688096917,4.66118824,90.231,90.2,3.53356642]
[1772688097814,13.78820342,90.302,90.142,19.963]
[1772688097815,4.66118824,90.259,90.21,3.53356642]
[1772688098409,4.66118824,90.239,90.19,3.53356642]
[1772688099316,4.58269354,90.227,90.17,3.53356642]
[1772688100417,4.58269354,90.221,90.19,3.53356642]
[1772688101019,4.60040282,90.249,90.2,3.53356642]
[1772688102615,14.57140282,90.238,90.2,3.53356642]
[1772688103118,4.60149018,90.237,90.2,3.53356642]
[1772688103317,4.60149018,90.219,90.127,20.50204207]
[1772688103511,4.60149018,90.219,90.17,3.53356642]
[1772688103716,4.60149018,90.219,90.18,3.53356642]
[1772688103918,4.60149018,90.231,90.19,3.53356642]
[1772688104522,4.60149018,90.231,90.2,3.53356642]
[1772688105220,9.972,90.23,90.2,3.53356642]
[1772688105421,9.972,90.23,90.19,3.53356642]
[1772688108025,4.60149018,90.231,90.19,3.53356642]
[1772688108226,9.971,90.237,90.19,3.53356642]
[1772688108420,4.60927754,90.245,90.21,3.53356642]
[1772688108926,4.60927754,90.245,90.2,3.53356642]
[1772688110421,4.60927754,90.245,90.161,19.959]
[1772688110629,4.61118289,90.239,90.18,3.53356642]
[1772688111526,9.972,90.225,90.18,3.53356642]
[1772688112521,4.61653264,90.232,90.18,3.53356642]
[1772688112828,4.61653264,90.232,90.19,3.53356642]
[1772688113127,4.61653264,90.232,90.19,13.50956642]
[1772688116126,4.61653264,90.232,90.197,9.975]
[1772688116529,4.61653264,90.232,90.2,3.53356642]
[1772688116927,4.63913191,90.256,90.2,3.53356642]
[1772688117126,4.63913191,90.256,90.201,9.975]
[1772688117319,4.63913191,90.256,90.2,3.53356642]
[1772688117720,4.63913191,90.256,90.215,9.973]
[1772688119129,4.63913191,90.256,90.208,9.974]
[1772688119428,4.64104812,90.249,90.208,9.974]
[1772688120620,4.64104812,90.249,90.19,3.53356642]
[1772688122432,4.64120546,90.248,90.18,3.53356642]
[1772688123031,4.63755218,90.239,90.18,3.53356642]
[1772688123923,4.63755218,90.229,90.17,3.53356642]
[1772688124129,4.63755218,90.229,90.16,3.53356642]
[1772688124631,4.63755218,90.229,90.092,34.14099325]
[1772688124632,4.63755218,90.199,90.14,3.53356642]
[1772688125032,4.62538701,90.197,90.14,3.53356642]
[1772688125432,4.62538701,90.189,90.13,3.53356642]
[1772688126332,4.62538701,90.189,90.14,3.53356642]
[1772688127130,4.62555051,90.179,90.118,9.984]
[1772688127431,4.62555051,90.179,90.14,3.53356642]
[1772688128029,4.62555051,90.179,90.126,9.983]
[1772688128337,4.62555051,90.179,90.14,3.53356642]
[1772688128732,4.62555051,90.193,90.15,3.53356642]
[1772688129433,4.62555051,90.193,90.133,9.982]
[1772688129729,4.59163202,90.191,90.14,3.53356642]
[1772688132035,4.592671,90.189,90.14,3.53356642]
[1772688132736,4.592671,90.178,90.13,3.53356642]
[1772688133332,4.5861752,90.159,90.09,20.50204207]
[1772688133637,4.5861752,90.159,90.12,3.53356642]
[1772688134136,4.5861752,90.179,90.12,3.53356642]
[1772688134337,4.5861752,90.165,90.12,3.53356642]
[1772688134633,4.5861752,90.165,90.11,3.53356642]
[1772688134833,4.5861752,90.165,90.12,3.53356642]
[1772688135032,4.61371725,90.179,90.13,3.53356642]
[1772688135232,4.61371725,90.149,90.077,20.50204207]
[1772688135430,4.61371725,90.149,90.052,40.55822435]
[1772688135431,4.61371725,90.149,90.11,3.53356642]
[1772688135629,4.61371725,90.169,90.11,3.53356642]
[1772688136031,9.98,90.153,90.11,3.53356642]
[1772688137243,4.57617558,90.171,90.12,3.53356642]
[1772688137439,4.57617558,90.171,90.067,20.50204207]
[1772688137440,4.57617558,90.206,90.16,3.53356642]
[1772688137638,4.57617558,90.206,90.17,3.53356642]
[1772688137839,4.57617558,90.206,90.15,3.53356642]
[1772688138741,4.57617558,90.198,90.15,3.53356642]
[1772688138942,4.50767705,90.189,90.14,3.53356642]
[1772688139241,9.979,90.166,90.13,3.53356642]
[1772688139535,9.979,90.166,90.12,3.53356642]
[1772688139741,9.979,90.166,90.13,3.53356642]
[1772688140041,14.48567705,90.174,90.13,3.53356642]
[1772688140638,9.977,90.182,90.15,3.53356642]
[1772688140841,4.50767705,90.193,90.14,3.53356642]
[1772688141234,9.978,90.175,90.14,3.53356642]
[1772688142342,9.977,90.184,90.14,3.53356642]
[1772688142540,9.977,90.184,90.14,3.54042409]
[1772688142735,4.50767705,90.193,90.14,3.54042409]
[1772688143135,4.52120682,90.209,90.16,3.54042409]
[1772688144044,4.52120682,90.209,90.108,20.50204207]
[1772688144045,4.52120682,90.209,90.15,3.54042409]
[1772688146446,4.519904,90.207,90.151,9.98]
[1772688147946,4.519904,90.207,90.159,9.979]
[1772688148147,4.519904,90.207,90.16,3.54042409]
[1772688150545,4.41585782,90.205,90.16,3.54042409]
[1772688151446,14.37868791,90.203,90.16,3.54042409]
[1772688152152,4.40368791,90.197,90.15,3.54042409]
[1772688153254,9.976,90.194,90.15,3.54042409]
[1772688153846,9.976,90.188,90.15,3.54042409]
[1772688155549,9.976,90.188,90.09,27.22919797]
[1772688155550,4.39957721,90.227,90.18,3.54042409]
[1772688156346,9.974,90.212,90.18,3.54042409]
[1772688156651,8.36466767,90.248,90.127,19.966]
[1772688156652,4.39957721,90.248,90.136,20.50204207]
[1772688156958,4.39957721,90.248,90.19,3.54042409]
[1772688157258,4.38960144,90.219,90.16,3.54042409]
[1772688157657,4.38960144,90.219,90.162,9.979]
[1772688157859,4.38960144,90.219,90.17,3.54042409]
[1772688158157,4.38960144,90.237,90.19,3.54042409]
[1772688160252,4.38960144,90.237,90.18,3.54042409]
[1772688162248,1.92933532,90.26,90.17,3.54042409]
[1772688162249,4.35935065,90.219,90.17,3.54042409]
[1772688162450,4.35935065,90.209,90.15,3.54042409]
[1772688163061,4.35935065,90.209,90.16,3.54042409]
[1772688166257,3.54042409,90.22,90.16,3.54042409]
[1772688166258,4.39714082,90.206,90.16,3.54042409]
[1772688166462,4.39714082,90.206,90.15,3.54042409]
[1772688167156,4.39714959,90.198,90.15,3.54042409]
[1772688167959,9.974,90.205,90.16,3.54042409]
[1772688168467,9.975,90.199,90.16,3.54042409]
[1772688168661,9.975,90.199,90.122,20.50204207]
[1772688168868,9.975,90.199,90.16,3.54042409]
[1772688170567,4.39714959,90.205,90.16,3.54042409]
[1772688171668,4.39714959,90.205,90.162,9.979]
[1772688173165,4.38063384,90.219,90.169,9.978]
[1772688175668,4.38063384,90.219,90.105,27.49819398]
[1772688175669,4.38095472,90.236,90.18,3.54042409]
[1772688176867,4.38095472,90.236,90.129,155.293]
[1772688176868,8.37269687,90.259,90.2,3.54042409]
[1772688177067,3.54042409,90.26,90.191,3.66517341]
[1772688177367,1.92916954,90.27,90.191,3.66517341]
[1772688177368,3.54042409,90.25,90.191,3.66517341]
[1772688178371,3.54042409,90.25,90.202,9.975]
[1772688178873,3.99629696,90.249,90.191,3.66517341]
[1772688179567,3.99629696,90.239,90.19,3.54042409]
[1772688179766,3.99629696,90.239,90.18,3.54042409]
[1772688180172,3.99629696,90.239,90.181,3.70885404]
[1772688182866,3.99629696,90.237,90.181,3.70885404]
[1772688184072,3.99629696,90.234,90.181,3.70885404]
[1772688184274,3.99629696,90.234,90.151,20.50204207]
[1772688184275,3.54042409,90.22,90.152,3.70885404]
[1772688184576,3.99629696,90.209,90.16,3.54042409]
[1772688184879,3.99629696,90.209,90.152,3.70885404]
[1772688185471,3.99629696,90.209,90.16,3.54042409]
[1772688185878,3.99629696,90.205,90.16,3.54042409]
[1772688186981,9.975,90.203,90.16,3.54042409]
[1772688187284,3.99629696,90.202,90.16,7.24927813]
[1772688187676,3.99629696,90.217,90.17,7.24927813]
[1772688188980,3.99629696,90.23,90.181,3.70885404]
[1772688189483,3.99629696,90.23,90.191,3.70885404]
[1772688189881,9.972,90.227,90.191,3.70885404]
[1772688190682,3.99629696,90.23,90.191,3.70885404]
[1772688191788,3.99629696,90.23,90.18,3.54042409]
[1772688191982,3.99629696,90.23,90.19,3.54042409]
[1772688192184,3.99629696,90.254,90.21,3.54042409]
[1772688193185,3.99629696,90.254,90.201,3.70885404]
[1772688194187,3.99629696,90.254,90.21,3.54042409]
[1772688196186,3.99629696,90.254,90.152,27.52832817]
[1772688196187,3.99629696,90.269,90.221,3.70885404]
[1772688196986,13.96329696,90.269,90.221,3.70885404]
[1772688197886,9.967,90.269,90.221,3.70885404]
[1772688198786,3.73622459,90.268,90.221,3.70885404]
[1772688199187,8.36871386,90.289,90.205,3.73746162]
[1772688199188,3.73622459,90.265,90.205,3.73746162]
[1772688199485,3.73622459,90.259,90.205,3.73746162]
[1772688200087,3.73622459,90.259,90.21,3.54042409]
[1772688200484,3.73622459,90.258,90.21,3.54042409]
[1772688201790,9.969,90.255,90.21,3.54042409]
[1772688202592,9.969,90.249,90.21,3.54042409]
[1772688203091,9.969,90.249,90.22,7.27979009]
[1772688203297,9.969,90.249,90.205,3.739366]
[1772688203594,9.969,90.249,90.21,7.27979009]
[1772688203784,9.97,90.24,90.21,7.27979009]
[1772688204495,3.73622459,90.259,90.2,3.53537973]
[1772688205186,9.972,90.227,90.2,3.53537973]
[1772688205386,3.73622459,90.246,90.2,3.53537973]
[1772688207999,3.73622459,90.246,90.192,3.739366]
[1772688208897,3.73622459,90.246,90.195,3.54024284]
[1772688209193,3.88023605,90.269,90.221,3.54024284]
[1772688209497,20.66692221,90.322,90.152,155.253]
[1772688209498,3.88023605,90.289,90.231,3.54024284]
[1772688210599,3.88023605,90.287,90.231,3.54024284]
[1772688211394,3.88023605,90.269,90.22,9.973]
[1772688211596,3.88023605,90.259,90.203,3.54122224]
[1772688212299,3.88023605,90.259,90.204,9.974]
[1772688213399,3.88023605,90.259,90.21,9.974]
[1772688214294,3.88023605,90.259,90.217,9.973]
[1772688214698,3.88023605,90.259,90.203,3.54122224]
[1772688214900,3.88023605,90.249,90.203,3.54122224]
[1772688216894,9.97,90.248,90.203,3.54122224]
[1772688217100,3.88023605,90.247,90.203,3.54122224]
[1772688218001,9.97,90.246,90.203,3.54122224]
[1772688219404,3.88023605,90.278,90.221,3.52870311]
[1772688220399,9.967,90.267,90.221,3.52870311]
[1772688220805,9.967,90.267,90.23,3.53537973]
[1772688221001,9.967,90.267,90.23,7.06939455]
[1772688221707,9.969,90.253,90.21,3.53537973]
[1772688222298,9.969,90.253,90.21,7.06939455]
[1772688222501,9.969,90.253,90.211,3.53401482]
[1772688223006,9.97,90.247,90.211,3.53401482]
[1772688224203,9.97,90.241,90.211,3.53401482]
[1772688226599,3.88023605,90.266,90.211,3.53401482]
[1772688228507,3.88023605,90.263,90.211,3.53401482]
[1772688229103,3.88023605,90.263,90.221,3.55750161]
[1772688229303,3.88023605,90.263,90.23,3.53537973]
[1772688229913,3.8706933,90.28,90.23,3.53537973]
[1772688230407,3.8706933,90.28,90.24,3.53537973]
[1772688230914,3.8706933,90.28,90.231,3.55750161]
[1772688232015,3.8706933,90.28,90.241,3.55350979]
[1772688232711,3.8706933,90.28,90.23,3.53537973]
[1772688233313,3.8706933,90.28,90.231,3.5555981]
[1772688233515,3.8706933,90.28,90.24,3.53537973]
[1772688234418,3.8706933,90.295,90.25,3.53537973]
[1772688236119,9.965,90.292,90.25,3.53537973]
[1772688237622,9.965,90.292,90.251,3.57387143]
[1772688239026,9.965,90.285,90.251,3.57387143]
[1772688239927,3.8706933,90.278,90.24,3.53537973]
[1772688240224,3.8706933,90.278,90.237,3.55421045]
[1772688240420,3.8706933,90.268,90.219,3.55421045]
[1772688240619,3.8706933,90.268,90.221,3.55421045]
[1772688240923,3.8706933,90.268,90.23,3.53537973]
[1772688241123,3.8706933,90.289,90.23,7.10684156]
[1772688241623,9.968,90.259,90.23,7.10684156]
[1772688243024,9.969,90.252,90.23,7.10684156]
[1772688243927,3.8706933,90.276,90.23,0.00084156]
[1772688244226,3.8706933,90.276,90.22,3.53537973]
[1772688244924,3.94304016,90.262,90.22,3.53537973]
[1772688245928,3.94304016,90.262,90.221,0.15536254]
[1772688246126,3.94304016,90.262,90.23,3.53537973]
[1772688247527,3.94304016,90.262,90.221,0.15536254]
[1772688247929,3.94127919,90.279,90.221,0.15536254]
[1772688248836,3.94127919,90.279,90.23,3.53537973]
[1772688254633,3.94276078,90.269,90.2,0.15592129]
[1772688254832,3.94276078,90.259,90.2,0.15592129]
[1772688255634,3.94276078,90.259,90.2,3.69130102]
[1772688256133,3.94276078,90.259,90.211,9.974]
[1772688256629,3.94276078,90.259,90.202,9.975]
[1772688256836,3.94276078,90.259,90.203,0.14162631]
[1772688257131,9.968,90.258,90.203,0.14162631]
[1772688257338,3.98149591,90.257,90.203,0.14162631]
[1772688257533,3.98149591,90.257,90.162,19.958]
[1772688257534,3.98149591,90.229,90.185,0.07845105]
[1772688257839,3.98149591,90.229,90.17,3.53537973]
[1772688257840,3.98149591,90.219,90.166,0.07845105]
[1772688258934,7.53457711,90.21,90.166,0.07845105]
[1772688259335,3.99919738,90.21,90.17,3.58016699]
[1772688260940,9.974,90.208,90.17,0.04478726]
[1772688261138,3.98817861,90.207,90.161,9.979]
[1772688261340,3.98817861,90.207,90.162,0.06682479]